Cogmind - Beta 13 @@@ ROGUE MODE // 2024.04.04 @ 21:11:08 Player: nowtakenusername Result: Destroyed by as-01165 with Assembled Maul Performance ------------- Evolutions (0) 0 Regions Visited (2) 400 Robots Destroyed (25) 125 Value Destroyed (444) 444 Prototype IDs (0) 0 Alien Tech Used (0) 0 Bonus (0) 0 TOTAL SCORE: 969 Bonus ------- None Cogmind --------- Core Integrity 0/250 Matter 285/300 Energy 83/100 System Corruption 6% Temperature Cool (0) Movement Hovering (120) Ox1 Location -10/Mines Parts ------- > --- POWER (1) -------- (None) > --- PROPULSION (2) --- Hover Unit > --- UTILITY (2) ------ Small Storage Unit Signal Interpreter > --- WEAPON (2) ------- Hammer > --- INVENTORY (8) ---- Light Ion Engine Medium Storage Unit ECM Suite Light Assault Rifle Mining Laser Peak State ------------ > --- POWER ------------ Ion Engine > --- PROPULSION ------- Aluminum Leg Aluminum Leg > --- UTILITY ---------- Improved Heat Sink Small Storage Unit > --- WEAPON ----------- Small Laser Light Assault Rifle > --- INVENTORY -------- Light Ion Engine Light Treads Light Treads Wheel Compact Wheel Light Assault Rifle Mining Laser [Rating: 9] Favorites ----------- Power Light Ion Engine Engine Light Ion Engine Propulsion Aluminum Leg Treads Light Treads Leg Aluminum Leg Hover Unit Hover Unit Utility Small Storage Unit Device Improved Heat Sink Storage Small Storage Unit Processor Signal Interpreter Weapon Light Assault Rifle Energy Gun Small Laser Energy Cannon Beam Cannon Ballistic Gun Light Assault Rifle Launcher Grenade Launcher Impact Weapon Hammer Build | -11 -10 -10 ------- Run | Yrd Mat Min Slots Evolved . | . . . Power . | . . . Propulsion . | . . . Utility . | . . . Weapon . | . . . Parts Attached 30 | 9 13 8 Power 4 | 2 1 1 Engine 4 | 2 1 1 Core . | . . . Reactor . | . . . Propulsion 11 | 4 3 4 Treads 2 | 2 . . Leg 6 | 2 3 1 Wheel . | . . . Hover 3 | . . 3 Flight . | . . . Utility 5 | 1 3 1 Device 1 | . 1 . Storage 3 | 1 1 1 Processor 1 | . 1 . Hackware . | . . . Protection . | . . . Artifact . | . . . Weapon 10 | 2 6 2 Energy Gun 1 | 1 . . Energy Cannon 2 | . 2 . Ballistic Gun 5 | 1 4 . Ballistic Cannon . | . . . Launcher 1 | . . 1 Special Weapon . | . . . Impact Weapon 1 | . . 1 Slashing Weapon . | . . . Piercing Weapon . | . . . Special Melee Weapon . | . . . Unidentified Prototypes . | . . . Parts Lost 7 | . . 7 Power 2 | . . 2 Propulsion 4 | . . 4 Utility . | . . . Weapon 1 | . . 1 Highest Loss Streak 3 | . . 3 To Critical Strikes . | . . . Average Slot Usage (%) 95 | . 95 95 Engine 13 | . 14 12 Leg 25 | . 27 19 Hover 2 | . . 7 Device 3 | . 5 . Storage 14 | . 14 14 Processor 7 | . 4 14 Energy Gun 3 | . 4 . Energy Cannon 8 | . 9 8 Ballistic Gun 13 | . 13 13 Impact Weapon 1 | . . 4 Naked Turns . | . . . Heaviest Build 17 | 12 17 17 Greatest Support 40 | 40 20 20 Greatest Overweight (x) 4 | . 1 4 Average Overweight (x) . | . . . Largest Inventory Capacity 10 | 8 10 10 Average Capacity 8 | 7 8 9 Most Carried 10 | 4 10 10 Average Carried 7 | 2 7 9 Final Capacity 10 | 8 10 8 Final Carried 10 | 4 10 5 Class Distribution -------------------- 57% | Scavenger-Mutant 42% | Mutant Dominant Class ---------------- Mutant | -10/Materials Scavenger-Mutant | -10/Mines Resources | -11 -10 -10 ----------- Run | Yrd Mat Min Matter Collected 572 | 195 296 81 Remotely . | . . . Salvage Created 678 | . 509 169 Parts 46 | . 39 7 Haulers Intercepted 2 | . 2 . Recyclers Shooed . | . . . Parts Field Recycled . | . . . Retrieved Matter . | . . . Parts Self-Destructed . | . . . Prevented . | . . . Kills | -11 -10 -10 ------- Run | Yrd Mat Min Combat Hostiles Destroyed 18 | . 11 7 Melee 2 | . . 2 Guns 8 | . 6 2 Cannons 5 | . 4 1 AOE 1 | . . 1 Classes Destroyed 9 | . 7 2 Worker 2 | . 1 1 Tunneler 1 | . . 1 Hauler 2 | . 2 . Mechanic 1 | . 1 . Operator 1 | . 1 . Watcher 3 | . 3 . Swarmer 8 | . 6 2 Grunt 7 | . 5 2 Assembled 3 | . . 3 Best Kill Streak 3 | . 3 2 Combat Bots Only 3 | . 3 2 Max Kills in Single Turn 2 | . 1 2 Gunslinging . | . . . Exploded 1 | . . 1 Melee 1 | . . 1 Uniques/NPCs Destroyed . | . . . Combat | -11 -10 -10 -------- Run | Yrd Mat Min Hostile Shots Fired 118 | . 54 64 Missed 24 | . 13 11 Damage Taken 1107 | . 469 638 Core 263 | . 100 163 Absorbed by Shields . | . . . Core Remaining (%) 100 | 100 . . Volleys Fired 113 | . 77 36 Largest 2 | . 2 2 Hottest 80 | . 80 80 Shots Fired 203 | . 154 49 Gun 137 | . 102 35 Cannon 65 | . 52 13 Launcher 1 | . . 1 Special . | . . . Kinetic 112 | . 77 35 Thermal 90 | . 77 13 Explosive 1 | . . 1 Electromagnetic . | . . . Robot Hit Streak 13 | . 13 9 Robot Miss Streak 8 | . 7 8 Penetration Max . | . . . Secondary Targets . | . . . Shots Hit Robots 107 | . 78 29 Core Hits 47 | . 32 15 Critical Kills 1 | . 1 . Critical Parts Destroyed 1 | . . 1 Critical Strikes 2 | . 1 1 Meltdown 1 | . 1 . Smash 1 | . . 1 Melee Attacks 13 | . . 13 Impact 13 | . . 13 Slashing . | . . . Piercing . | . . . Sneak Attacks 1 | . . 1 Combat Hostiles . | . . . Follow-up Attacks . | . . . Damage Inflicted 1591 | . 968 623 Guns 633 | . 506 127 Cannons 614 | . 456 158 Explosions 102 | . . 102 Melee 233 | . . 233 Ramming 9 | . 6 3 Kinetic 493 | . 366 127 Thermal 754 | . 596 158 Explosive 102 | . . 102 Electromagnetic . | . . . Impact 233 | . . 233 Slashing . | . . . Piercing . | . . . Highest Corruption 6 | . . 6 Average Corruption 5 | . . 5 Corruption Purged . | . . . Corruption Blocked . | . . . Effects 1 | . . 1 Parts Rejected 1 | . . 1 Overload Shots . | . . . Overflow Damage 114 | . . 114 Projectiles 3 | . . 3 Explosions 20 | . . 20 Melee 91 | . . 91 Knockbacks 1 | . . 1 Impact 1 | . . 1 Kinetic . | . . . Secondary . | . . . Self-Inflicted Damage 22 | . . 22 Shots 1 | . . 1 Rammed 1 | . . 1 Targets Rammed 4 | . 2 2 Kicked 3 | . 2 1 Crushed . | . . . Highest Temperature 321 | . 103 321 Average Temperature 46 | . 25 117 Received Heat Transfer 364 | . 171 193 Siege Activations . | . . . Robots Corrupted . | . . . Combat Hostiles . | . . . Parts Fried 1 | . . 1 Impact Corruptions 5 | . . 5 Robots Melted 1 | . 1 . Combat Hostiles 1 | . 1 . Parts Melted 4 | . 3 1 Heat Transferred 1620 | . 1287 333 Parts Sabotaged . | . . . Parts Stolen . | . . . Parts Stripped . | . . . Power Chain Reactions . | . . . Alert | -11 -10 -10 ------- Run | Yrd Mat Min Peak Influence 190 | . 190 148 Initial 33 | . . 33 Average 75 | . 90 58 Maximum Alert Level . | . . . Low Security (%) 100 | 100 100 100 Level 1 . | . . . Level 2 . | . . . Level 3 . | . . . Level 4 . | . . . Level 5 . | . . . High Security . | . . . Max Security . | . . . Squads Dispatched 2 | . 2 . Investigation . | . . . Extermination . | . . . Reinforcement 2 | . 2 . Assault . | . . . Garrison . | . . . Intercept . | . . . Searches Triggered . | . . . Construction Impeded . | . . . Haulers Reinforced . | . . . Active Scanning Responses . | . . . Cargo Convoy Interrupts . | . . . Stealth | -11 -10 -10 --------- Run | Yrd Mat Min Distress Signals 1 | . 1 . Communications Jammed . | . . . Distress Signals . | . . . Times Spotted 41 | . 29 12 Peak Tracking Total 10 | . 5 10 Tactical Retreats 1 | . . 1 Traps | -11 -10 -10 ------- Run | Yrd Mat Min Traps Triggered 4 | . 4 . Indirectly . | . . . Trap Hack Attempts . | . . . Triggered . | . . . Disarmed . | . . . Reprogrammed 6 | . 6 . Reused . | . . . Traps Extracted . | . . . Installed . | . . . Triggered . | . . . Machines | -11 -10 -10 ---------- Run | Yrd Mat Min Machines Disabled 1 | . 1 . Max in Single Turn 1 | . 1 . Machines Repaired . | . . . Machines Dismantled . | . . . Machines Sabotaged . | . . . Overloaded Fab Kills . | . . . Hacking | -11 -10 -10 --------- Run | Yrd Mat Min Machines Accessed 3 | . 2 1 Terminals 3 | . 2 1 Fabricators . | . . . Repair Stations . | . . . Recycling Units . | . . . Scanalyzers . | . . . Garrison Access . | . . . Total Hacks 5 | . 4 1 Successful 2 | . 2 . Failed 3 | . 2 1 Catastrophic 2 | . 1 1 Database Lockouts . | . . . Manual 3 | . 2 1 Terminals 5 | . 4 1 Fabricators . | . . . Repair Stations . | . . . Recycling Units . | . . . Scanalyzers . | . . . Garrison Access . | . . . Terminal Hacks 2 | . 2 . Locate Traps 1 | . 1 . Reprogram Traps 1 | . 1 . Fabricator Hacks . | . . . Repair Station Hacks . | . . . Recycling Unit Hacks . | . . . Scanalyzer . | . . . Garrison Access Hacks . | . . . Unauthorized Hacks . | . . . Terminals . | . . . Fabricators . | . . . Repair Stations . | . . . Recycling Units . | . . . Scanalyzers . | . . . Garrison Access . | . . . Data Cores Recovered . | . . . Used . | . . . Hacking Detections 2 | . 1 1 Full Trace Events . | . . . Feedback Events . | . . . Feedback Blocked . | . . . Robot Schematics Acquired . | . . . Robots Built . | . . . Authchips . | . . . Time . | . . . Total Robot Build Rating . | . . . Part Schematics Acquired . | . . . Parts Built . | . . . Authchips . | . . . Time . | . . . Total Part Build Rating . | . . . Parts Repaired . | . . . Time . | . . . Parts Recycled . | . . . Recycled Matter . | . . . Retrieved Matter . | . . . Retrieved Components . | . . . Parts Scanalyzed . | . . . Part Schematics Acquired . | . . . Parts Damaged . | . . . Bothacking | -11 -10 -10 ------------ Run | Yrd Mat Min Used RIF Installer . | . . . Robots Hacked . | . . . Non-combat . | . . . Combat . | . . . Robot Hacks Applied . | . . . Relay Couplers Released . | . . . Fabnet Peak Effective % . | . . . Robots Rewired . | . . . Allies Hacked . | . . . Hacks Repelled . | . . . Allies | -11 -10 -10 -------- Run | Yrd Mat Min Total Allies . | . . . Largest Group . | . . . Highest-Rated Group . | . . . Highest-Rated Ally . | . . . Total Orders . | . . . Ally Attacks . | . . . Total Damage . | . . . Kills . | . . . Allies Corrupted . | . . . Allies Melted . | . . . Intel | -11 -10 -10 ------- Run | Yrd Mat Min Robot Analysis Total . | . . . Derelict Logs Recovered 1 | . . 1 Drone Launches . | . . . Drone Recoveries . | . . . Exploration | -11 -10 -10 ------------- Run | Yrd Mat Min Turns Passed 1678 | 98 1087 493 Spaces Moved 1066 | 68 690 308 Core 6 | 4 . 2 Treads 12 | 12 . . Legs 939 | 52 690 197 Wheels . | . . . Hover 109 | . . 109 Flight . | . . . Fastest Speed 50 | 50 120 56 Average Speed 114 | 122 120 100 Slowest Speed 250 | 160 190 250 Overloaded Moves . | . . . Propulsion Burnouts . | . . . Robots Hopped . | . . . Cave-ins Triggered . | . . . Exploration Rate (%) 36 | 5 63 41 Regions Visited 2 Branch Regions 1 Pre-discovered Areas . | . . . Known Exits Taken 1 | . 1 . Unknown Exits Taken 1 | 1 . . Scrap Searched 1 | . . 1 Spaces Dug . | . . . Terrain Destroyed 10 | . . 10 Melee . | . . . Projectile . | . . . AOE 10 | . . 10 Terrain Rammed . | . . . Walls Destroyed . | . . . Machines Disabled . | . . . Actions | -11 -10 -10 --------- Run | Yrd Mat Min Total 1317 | 79 811 427 Wait 63 | . 8 55 Move 1064 | 67 689 308 Hop . | . . . Pick Up 12 | 1 10 1 Fast Attach 17 | 8 7 2 Attach 4 | . 1 3 Detach 3 | 2 1 . Swap 9 | 1 5 3 Drop 15 | . 11 4 Fire 113 | . 77 36 Melee 13 | . . 13 Ram 1 | . . 1 Kick 3 | . 2 1 Crush . | . . . Escape Stasis . | . . . Rewire . | . . . Trap . | . . . Miscellaneous . | . . . Route ------- -11/Scrapyard -10/Materials (discovered 3 exits: [*Mat] / *Min x2) -10/Mines History --------- Turn | Location | Event 24 | -11/Scrapyard | Discovered new exit (range 15) 99 | -11/Scrapyard | Entered Materials 303 | -10/Materials | Discovered new exit (range 16) 309 | -10/Materials | Build established: Mutant 337 | -10/Materials | Discovered new exit (range 7) 583 | -10/Materials | Discovered new exit (range 10) 992 | -10/Materials | Build established: Scavenger-Mutant 1170 | -10/Materials | Identified exit to Mines 1186 | -10/Materials | Entered Mines 1223 | -10/Mines | Received a Rocket Launcher from a helpful Derelict 1462 | -10/Mines | Learned 2 Materials zone layouts 1506 | -10/Mines | Core integrity fell below 50% 1536 | -10/Mines | Assembled infested the area 1638 | -10/Mines | Core integrity fell below 20% 1679 | -10/Mines | Destroyed by as-01165 with Assembled Maul Last Messages --------------- 01642_ Destroyed Asb. Hover Unit. 01642_ Destroyed Asb. F-torch. 01642_ as-55428 system corrupted by crushing effect. 01643_ as-55428 system terminally corrupted. 01647_ Acquired 23 matter. 01654_ Acquired 1 matter. 01663_ Hover Unit destroyed. 01663_ Destroyed Hover Unit. 01663_ as-77711 destroyed. 01666_ Lgt. Ion Engine destroyed. 01666_ System corrupted by crushing effect (+5). 01666_ Knocked back. 01667_ System corrupted: Grenade Launcher rejected. 01676_ Hover Unit destroyed. 01676_ System corrupted by crushing effect (+1). 01676_ Knocked back. 01676_ Dropped Hover Unit. 01677_ Dropped Imp. Heat Sink. Map ----- +----------------------------------------------------+ | ??????# ???# #?????????????????????? | | ???????# ???# #?????????????????????? | | ???????# #??# #?????????????????????? | | ???????# ### #?????????????????????? | | ????????# #?????????????????????? | | ????????# !%% #?????????????????????? | | ?????????# !** #####????????????????? | | ??????????##%* #????????????????? | | ???????????##=% #### #????????????????? | | ????????????# [##??# #????????????????? | | ############# |##???# #????????????????? | | # % % #????# #????????????????? | | # ###########[ #????#%#????????????????? | | # #????????# #????#%#????????????????? | | #???????# #????# #????????????????? | | # #??????# #????# #????????????????? | | # #??????# ##???## ##???????????????? | | # #?????? ##????# #???????????????? | | # ####??# ??????# % #???????????????? | | #??# %??????# #???????????????? | | #??## ??????# #????#####??????? | | """ #???## %??????# ] #????# #??????? | | """ #????###??????## ##????# #???????? | | """ #??????????????# #?????# #????????? | | #??????????????# ####### #????????? | | #T####??????????????# a=@t #????????? | | ###?????????????????# ###a#####????????? | | ????????????????????# #?# ###??????????? | | ????????????????????# ### ##?????????? | | ????????????????????# #?????????? | | ????????????????????#### #?????????? | | ???????????????????????# #?????????? | | ??????????????????????## ##?????????? | | ?????????????????????## ##??????????? | | ???????????????????### #???????????? | | ???????????????????# ##???????????? | | ??????????????????# #????????????? | | ??????????????????# #????????????? | | ??????????????????## ##????????????? | | ???????????????????## ##?????????????? | | ????????????????????#####??????????????? | | ???????????????????????????????????????? | | ???????????????????????????????????????? | | ???????????????????????????????????????? | | | | | | | | | | | | | +----------------------------------------------------+ Best States ------------- Heat Dissipation 39 Energy Generation 10 Energy Capacity 250 Matter Stores 300 Matter Capacity 300 Sight Range 16 Terrain Scan Density 10 Evasion (%) 55 Recoil Reduction 2 Item Schematics ----------------- None Robot Schematics ------------------ None Fabricated ------------ Nothing Alien Tech Used ----------------- None Achievements -------------- None Challenges ------------ None Game ------ Seed BlastMatterMonowheel Manual? 0 Play Time 00:19:10 Cumulative 10.5 hours Start 2024.04.04 @ 20:55:11 End 2024.04.04 @ 21:11:08 Sessions 1 Manual Loads 0 Difficulty Rogue Special Mode None Game No. 10 Rogue 10 Adventurer 0 Explorer 0 Win Type - Total 0 Types 0/0/0/0/0/0/0/0/0 Lore% 15 Gallery% 12 Achievement% 14 Wizard Run 0 Options --------- Layout 1 ASCII 0 Keyboard 1 Movement Vi Keybinds 0 Fullscreen 1 Font 24/Smallcaps Map View 50x35 Zoom Use 0% Tactical HUD 1 Map Filters NONE Filters NONE Steam 1 RUN: 9b5cc15c-8a6e-4394-ad42-b8c5b0f488b8